[Event "Early-Titled-Tuesday-Blitz-December-26-2023"]
[Site "Chess.com"]
[Date "2023.12.26"]
[Round "3"]
[White "Viktor_Poddubnyi"]
[Black "Lady_Nika"]
[Result "0-1"]
[WhiteElo "2372"]
[BlackElo "2606"]
[TimeControl "180+1"]
[EndTime "8:26:55 PST"]
[Termination "Lady_Nika won on time"]

1. e4 {[%clk 0:02:58.8]} 1... c5 {[%clk 0:02:59.7]} 2. Nf3 {[%clk 0:02:58.2]}
2... e6 {[%clk 0:02:59.9]} 3. g3 {[%clk 0:02:57.6]} 3... Nc6 {[%clk 0:02:59.6]}
4. Bg2 {[%clk 0:02:57.6]} 4... d6 {[%clk 0:02:57.2]} 5. O-O {[%clk 0:02:57]}
5... Nf6 {[%clk 0:02:57.6]} 6. Re1 {[%clk 0:02:56.3]} 6... e5 {[%clk 0:02:57.7]}
7. c3 {[%clk 0:02:53.1]} 7... Bg4 {[%clk 0:02:56.2]} 8. h3 {[%clk 0:02:49.9]}
8... Bxf3 {[%clk 0:02:56.1]} 9. Qxf3 {[%clk 0:02:43.8]} 9... Be7 {[%clk
0:02:57]} 10. d3 {[%clk 0:02:41]} 10... O-O {[%clk 0:02:56.9]} 11. Be3 {[%clk
0:02:36.6]} 11... b5 {[%clk 0:02:56.9]} 12. Nd2 {[%clk 0:02:35.3]} 12... b4
{[%clk 0:02:57]} 13. Nc4 {[%clk 0:02:31.3]} 13... a5 {[%clk 0:02:57]} 14. a4
{[%clk 0:02:24.6]} 14... Qc7 {[%clk 0:02:50.7]} 15. h4 {[%clk 0:02:21.5]} 15...
Rfb8 {[%clk 0:02:50]} 16. g4 {[%clk 0:01:37.1]} 16... bxc3 {[%clk 0:02:47.5]}
17. bxc3 {[%clk 0:01:38]} 17... Rb3 {[%clk 0:02:47.3]} 18. g5 {[%clk 0:01:36.4]}
18... Nd7 {[%clk 0:02:46.5]} 19. Bd2 {[%clk 0:01:30.4]} 19... Nb6 {[%clk
0:02:45.3]} 20. Ne3 {[%clk 0:01:23.7]} 20... Rb2 {[%clk 0:02:43.5]} 21. Bc1
{[%clk 0:01:12.8]} 21... Rb3 {[%clk 0:02:41.6]} 22. Bd2 {[%clk 0:01:13.1]} 22...
Rb8 {[%clk 0:02:40.7]} 23. Bh3 {[%clk 0:01:01.2]} 23... Bf8 {[%clk 0:02:39]} 24.
h5 {[%clk 0:00:53.3]} 24... Ne7 {[%clk 0:02:33]} 25. Nf5 {[%clk 0:00:41.7]}
25... Nxf5 {[%clk 0:02:31.9]} 26. exf5 {[%clk 0:00:39.2]} 26... c4 {[%clk
0:02:17.2]} 27. f6 {[%clk 0:00:20.1]} 27... cxd3 {[%clk 0:02:17]} 28. Qxd3
{[%clk 0:00:19.7]} 28... Qc4 {[%clk 0:02:13.1]} 29. Qf3 {[%clk 0:00:11.8]} 29...
Qh4 {[%clk 0:02:04.9]} 30. fxg7 {[%clk 0:00:09.7]} 30... Bxg7 {[%clk 0:02:01.8]}
31. g6 {[%clk 0:00:10]} 31... hxg6 {[%clk 0:02:01.1]} 32. hxg6 {[%clk
0:00:10.4]} 32... Nc4 {[%clk 0:01:47.7]} 33. gxf7+ {[%clk 0:00:09]} 33... Kh8
{[%clk 0:01:43.7]} 34. Be3 {[%clk 0:00:08.7]} 34... e4 {[%clk 0:01:41.3]} 35.
Qf5 {[%clk 0:00:07.7]} 35... Rxc3 {[%clk 0:01:32.8]} 36. Kg2 {[%clk 0:00:08.1]}
36... Nxe3+ {[%clk 0:01:31.3]} 37. Rxe3 {[%clk 0:00:07]} 37... Rxe3 {[%clk
0:01:31]} 38. fxe3 {[%clk 0:00:07.1]} 38... Rb2+ {[%clk 0:01:28.6]} 39. Kh1
{[%clk 0:00:07.3]} 39... Rf2 {[%clk 0:01:26.7]} 40. Qc8+ {[%clk 0:00:05.4]}
40... Kh7 {[%clk 0:01:25.4]} 41. Qg8+ {[%clk 0:00:03.1]} 41... Kh6 {[%clk
0:01:25.5]} 0-1

[Event "Early-Titled-Tuesday-Blitz-December-26-2023"]
[Site "Chess.com"]
[Date "2023.12.26"]
[Round "3"]
[White "ozates"]
[Black "chito89"]
[Result "0-1"]
[WhiteElo "2603"]
[BlackElo "2840"]
[TimeControl "180+1"]
[EndTime "8:27:00 PST"]
[Termination "chito89 won by resignation"]

1. e4 {[%clk 0:03:00]} 1... Nc6 {[%clk 0:02:55.5]} 2. Nf3 {[%clk 0:02:58.3]}
2... d6 {[%clk 0:02:55.2]} 3. d4 {[%clk 0:02:58.3]} 3... Nf6 {[%clk 0:02:55.3]}
4. d5 {[%clk 0:02:58.4]} 4... Nb8 {[%clk 0:02:55.1]} 5. Bd3 {[%clk 0:02:58.9]}
5... c6 {[%clk 0:02:55.2]} 6. c4 {[%clk 0:02:59]} 6... g6 {[%clk 0:02:54.3]} 7.
Nc3 {[%clk 0:02:59]} 7... Bg7 {[%clk 0:02:54.6]} 8. O-O {[%clk 0:02:58.9]} 8...
O-O {[%clk 0:02:54.3]} 9. h3 {[%clk 0:02:59.5]} 9... Na6 {[%clk 0:02:52.6]} 10.
Be3 {[%clk 0:02:56.8]} 10... Nd7 {[%clk 0:02:49.7]} 11. Qd2 {[%clk 0:02:56.4]}
11... Nac5 {[%clk 0:02:47.8]} 12. Bc2 {[%clk 0:02:56.3]} 12... a5 {[%clk
0:02:48.4]} 13. Bh6 {[%clk 0:02:55.4]} 13... Nb6 {[%clk 0:02:42]} 14. Bxg7
{[%clk 0:02:50.7]} 14... Kxg7 {[%clk 0:02:42.9]} 15. Rfe1 {[%clk 0:02:41.6]}
15... e5 {[%clk 0:02:37.7]} 16. b3 {[%clk 0:02:37.9]} 16... cxd5 {[%clk
0:02:32.5]} 17. Nxd5 {[%clk 0:02:35.7]} 17... Nxd5 {[%clk 0:02:30.7]} 18. Qxd5
{[%clk 0:02:36.6]} 18... Be6 {[%clk 0:02:30.3]} 19. Qd2 {[%clk 0:02:35.7]} 19...
Qb6 {[%clk 0:02:29.3]} 20. Rad1 {[%clk 0:02:28.9]} 20... Rad8 {[%clk 0:02:27.5]}
21. Qc3 {[%clk 0:02:23]} 21... Qb4 {[%clk 0:02:25.7]} 22. Qb2 {[%clk 0:02:19.2]}
22... Na4 {[%clk 0:02:18.5]} 23. Qa1 {[%clk 0:02:16.4]} 23... Nc5 {[%clk
0:02:15.8]} 24. Rxd6 {[%clk 0:02:14.2]} 24... f6 {[%clk 0:02:12.7]} 25. Red1
{[%clk 0:02:09.5]} 25... Rxd6 {[%clk 0:02:08.6]} 26. Rxd6 {[%clk 0:02:10.4]}
26... Re8 {[%clk 0:02:05.1]} 27. Qd1 {[%clk 0:01:43.5]} 27... a4 {[%clk
0:02:00.6]} 28. Rd8 {[%clk 0:01:40.5]} 28... Rxd8 {[%clk 0:01:55.1]} 29. Qxd8
{[%clk 0:01:41.4]} 29... axb3 {[%clk 0:01:55.3]} 30. Qe7+ {[%clk 0:01:40]} 30...
Bf7 {[%clk 0:01:54.4]} 31. axb3 {[%clk 0:01:39.1]} 31... Qb6 {[%clk 0:01:48.5]}
32. g4 {[%clk 0:01:34.8]} 32... g5 {[%clk 0:01:39.9]} 33. h4 {[%clk 0:01:33.1]}
33... h6 {[%clk 0:01:39.6]} 34. hxg5 {[%clk 0:01:33.3]} 34... hxg5 {[%clk
0:01:40.5]} 35. Kg2 {[%clk 0:01:28.2]} 35... Ne6 {[%clk 0:01:32.4]} 36. b4
{[%clk 0:01:28.3]} 36... Nf4+ {[%clk 0:01:27]} 37. Kg3 {[%clk 0:01:28.5]} 37...
Ne2+ {[%clk 0:01:21]} 38. Kg2 {[%clk 0:01:28.4]} 38... Nf4+ {[%clk 0:01:13.2]}
39. Kg3 {[%clk 0:01:28.5]} 39... Ng6 {[%clk 0:01:13.8]} 40. Qd7 {[%clk
0:01:24.3]} 40... Qxb4 {[%clk 0:01:11.7]} 41. c5 {[%clk 0:01:21.2]} 41... Nf4
{[%clk 0:01:08.9]} 42. Qc7 {[%clk 0:01:11.5]} 42... Qc3 {[%clk 0:01:07.3]} 43.
Ba4 {[%clk 0:01:08.8]} 43... Kg6 {[%clk 0:01:06.5]} 44. Qxb7 {[%clk 0:01:02.7]}
44... Qxc5 {[%clk 0:01:04.2]} 45. Bd7 {[%clk 0:00:58.7]} 45... Qc4 {[%clk
0:00:58.7]} 46. Qc6 {[%clk 0:00:48.7]} 46... Qf1 {[%clk 0:00:53]} 47. Nxe5+
{[%clk 0:00:48.9]} 47... Kg7 {[%clk 0:00:52]} 48. Kf3 {[%clk 0:00:42.5]} 48...
fxe5 {[%clk 0:00:46]} 0-1

[Event "Early-Titled-Tuesday-Blitz-December-26-2023"]
[Site "Chess.com"]
[Date "2023.12.26"]
[Round "3"]
[White "margarita_2703"]
[Black "nindjaxx8"]
[Result "1/2-1/2"]
[WhiteElo "2327"]
[BlackElo "2583"]
[TimeControl "180+1"]
[EndTime "8:27:02 PST"]
[Termination "Game drawn by repetition"]

1. e4 {[%clk 0:03:00.9]} 1... e6 {[%clk 0:02:58.7]} 2. d4 {[%clk 0:02:55.2]}
2... d5 {[%clk 0:02:59.2]} 3. e5 {[%clk 0:02:55.7]} 3... c5 {[%clk 0:02:56.6]}
4. c3 {[%clk 0:02:56]} 4... Nc6 {[%clk 0:02:55.7]} 5. Nf3 {[%clk 0:02:56.2]}
5... Qb6 {[%clk 0:02:54.4]} 6. Na3 {[%clk 0:02:54.7]} 6... cxd4 {[%clk
0:02:51.7]} 7. cxd4 {[%clk 0:02:55.6]} 7... Bb4+ {[%clk 0:02:49.7]} 8. Bd2
{[%clk 0:02:54.3]} 8... Bxa3 {[%clk 0:02:49.7]} 9. bxa3 {[%clk 0:02:55.2]} 9...
Bd7 {[%clk 0:02:47.8]} 10. Rb1 {[%clk 0:02:53.7]} 10... Qc7 {[%clk 0:02:47.5]}
11. Bd3 {[%clk 0:02:52.6]} 11... Nge7 {[%clk 0:02:47.3]} 12. O-O {[%clk
0:02:52.1]} 12... Ng6 {[%clk 0:02:44.8]} 13. h4 {[%clk 0:02:49.9]} 13... h6
{[%clk 0:02:28.2]} 14. Qe2 {[%clk 0:02:45.3]} 14... O-O {[%clk 0:02:19.1]} 15.
h5 {[%clk 0:02:33]} 15... Nge7 {[%clk 0:02:18.5]} 16. Rfc1 {[%clk 0:02:32.6]}
16... b6 {[%clk 0:02:11.8]} 17. Bb4 {[%clk 0:01:58.6]} 17... Qd8 {[%clk
0:02:04]} 18. Bd6 {[%clk 0:01:57.4]} 18... Re8 {[%clk 0:01:59.4]} 19. Bc2 {[%clk
0:01:53.9]} 19... Nf5 {[%clk 0:01:56]} 20. Qd3 {[%clk 0:01:48.2]} 20... Nxd6
{[%clk 0:01:30.4]} 21. exd6 {[%clk 0:01:49.1]} 21... f5 {[%clk 0:01:24.3]} 22.
Ba4 {[%clk 0:01:44.2]} 22... Rc8 {[%clk 0:01:23.2]} 23. Qe3 {[%clk 0:01:24.4]}
23... Na5 {[%clk 0:01:18.5]} 24. Rxc8 {[%clk 0:01:13]} 24... Qxc8 {[%clk
0:01:17.7]} 25. Rc1 {[%clk 0:01:06.3]} 25... Nc4 {[%clk 0:01:16.9]} 26. Qb3
{[%clk 0:01:02.9]} 26... Rd8 {[%clk 0:01:07.9]} 27. Ne5 {[%clk 0:01:01.3]} 27...
Bxa4 {[%clk 0:00:45.4]} 28. Qxa4 {[%clk 0:00:58.9]} 28... Rxd6 {[%clk
0:00:44.4]} 29. Nxc4 {[%clk 0:00:57.8]} 29... dxc4 {[%clk 0:00:44.4]} 30. Rxc4
{[%clk 0:00:57.8]} 30... Qd7 {[%clk 0:00:43]} 31. Qxd7 {[%clk 0:00:56.8]} 31...
Rxd7 {[%clk 0:00:43.9]} 32. f4 {[%clk 0:00:56.4]} 32... Kf7 {[%clk 0:00:44.4]}
33. Kf2 {[%clk 0:00:56.6]} 33... Ke7 {[%clk 0:00:45]} 34. Ke3 {[%clk 0:00:56.5]}
34... Kd6 {[%clk 0:00:45.4]} 35. a4 {[%clk 0:00:55.7]} 35... Rc7 {[%clk
0:00:44.5]} 36. Kd3 {[%clk 0:00:54.8]} 36... Rxc4 {[%clk 0:00:43.8]} 37. Kxc4
{[%clk 0:00:55.7]} 37... Kc6 {[%clk 0:00:44.4]} 38. a3 {[%clk 0:00:53.9]} 38...
a6 {[%clk 0:00:44.2]} 39. g3 {[%clk 0:00:54.3]} 39... Kd6 {[%clk 0:00:40.2]} 40.
Kc3 {[%clk 0:00:53.7]} 40... Kd5 {[%clk 0:00:39.7]} 41. Kd3 {[%clk 0:00:53.3]}
41... Kc6 {[%clk 0:00:27]} 42. Kc4 {[%clk 0:00:52]} 42... Kd6 {[%clk 0:00:24.6]}
43. Kc3 {[%clk 0:00:51.7]} 43... Kc6 {[%clk 0:00:23.1]} 44. Kc4 {[%clk
0:00:51.9]} 1/2-1/2

[Event "Early-Titled-Tuesday-Blitz-December-26-2023"]
[Site "Chess.com"]
[Date "2023.12.26"]
[Round "3"]
[White "LUISMIGUELOV"]
[Black "Zq1"]
[Result "0-1"]
[WhiteElo "2207"]
[BlackElo "2410"]
[TimeControl "180+1"]
[EndTime "8:27:02 PST"]
[Termination "Zq1 won by resignation"]

1. d4 {[%clk 0:03:00.9]} 1... Nf6 {[%clk 0:02:57.1]} 2. c3 {[%clk 0:02:59.9]}
2... g6 {[%clk 0:02:52.1]} 3. Bg5 {[%clk 0:03:00.1]} 3... Bg7 {[%clk 0:02:51.8]}
4. Nd2 {[%clk 0:03:00.1]} 4... O-O {[%clk 0:02:50.8]} 5. Ngf3 {[%clk 0:02:59.6]}
5... b6 {[%clk 0:02:50.9]} 6. g3 {[%clk 0:02:54.7]} 6... c5 {[%clk 0:02:44.6]}
7. Bg2 {[%clk 0:02:51.9]} 7... Bb7 {[%clk 0:02:44.1]} 8. O-O {[%clk 0:02:47.7]}
8... d6 {[%clk 0:02:34.7]} 9. Rc1 {[%clk 0:02:38.9]} 9... Nbd7 {[%clk
0:02:33.2]} 10. Re1 {[%clk 0:02:36.2]} 10... h6 {[%clk 0:02:29.9]} 11. Bxf6
{[%clk 0:02:35.3]} 11... Nxf6 {[%clk 0:02:27.7]} 12. e3 {[%clk 0:02:32.8]} 12...
Rc8 {[%clk 0:02:24]} 13. Nh4 {[%clk 0:02:28.2]} 13... Bxg2 {[%clk 0:02:21.1]}
14. Nxg2 {[%clk 0:02:28.1]} 14... Qd7 {[%clk 0:02:19]} 15. f4 {[%clk 0:02:23.7]}
15... Qb7 {[%clk 0:02:17.4]} 16. Qf3 {[%clk 0:02:21.9]} 16... Qxf3 {[%clk
0:02:15.8]} 17. Nxf3 {[%clk 0:02:20.1]} 17... Ne4 {[%clk 0:02:15.7]} 18. Rcd1
{[%clk 0:02:13.4]} 18... Rfe8 {[%clk 0:02:11]} 19. Nd2 {[%clk 0:02:12.9]} 19...
Nxd2 {[%clk 0:02:09.3]} 20. Rxd2 {[%clk 0:02:12.1]} 20... e5 {[%clk 0:02:09.4]}
21. fxe5 {[%clk 0:02:06.2]} 21... dxe5 {[%clk 0:02:08.8]} 22. dxe5 {[%clk
0:02:06]} 22... Bxe5 {[%clk 0:02:01.6]} 23. Red1 {[%clk 0:02:06.3]} 23... Rc7
{[%clk 0:01:54.9]} 24. Kf2 {[%clk 0:02:03.3]} 24... Kg7 {[%clk 0:01:53]} 25. Kf3
{[%clk 0:02:02.9]} 25... Re6 {[%clk 0:01:52]} 26. Rd7 {[%clk 0:02:00.6]} 26...
Re7 {[%clk 0:01:49.2]} 27. Rxc7 {[%clk 0:01:56]} 27... Bxc7 {[%clk 0:01:43.7]}
28. Nf4 {[%clk 0:01:54.8]} 28... Bxf4 {[%clk 0:01:31.4]} 29. exf4 {[%clk
0:01:54.1]} 29... h5 {[%clk 0:01:26.3]} 30. h4 {[%clk 0:01:51.7]} 30... b5
{[%clk 0:01:19.2]} 31. Rd5 {[%clk 0:01:49.8]} 31... Rc7 {[%clk 0:01:18.7]} 32.
Ke4 {[%clk 0:01:45.9]} 32... a5 {[%clk 0:01:14.5]} 33. Ke5 {[%clk 0:01:44.9]}
33... Re7+ {[%clk 0:01:11.1]} 34. Kd6 {[%clk 0:01:44.1]} 34... Re2 {[%clk
0:01:10.9]} 35. Rxc5 {[%clk 0:01:43.3]} 35... Rxb2 {[%clk 0:01:10.6]} 36. a4
{[%clk 0:01:37.9]} 36... bxa4 {[%clk 0:01:06.6]} 37. Rxa5 {[%clk 0:01:37.7]}
37... Rc2 {[%clk 0:01:03.6]} 38. Rxa4 {[%clk 0:01:33.1]} 38... Rxc3 {[%clk
0:01:03.5]} 39. g4 {[%clk 0:01:19.4]} 39... hxg4 {[%clk 0:01:02.3]} 40. Ke5
{[%clk 0:01:18.2]} 40... g3 {[%clk 0:00:58.4]} 41. Ra2 {[%clk 0:01:16.7]} 41...
f5 {[%clk 0:00:49.9]} 42. Rg2 {[%clk 0:01:14.3]} 42... Kh6 {[%clk 0:00:47.6]}
43. Kf6 {[%clk 0:01:13.8]} 43... Kh5 {[%clk 0:00:46.9]} 44. Kg7 {[%clk
0:01:11.5]} 44... Rc7+ {[%clk 0:00:44.5]} 45. Kf6 {[%clk 0:01:11.1]} 45... Rc6+
{[%clk 0:00:44.2]} 46. Kg7 {[%clk 0:00:54.4]} 46... Kxh4 {[%clk 0:00:43.6]} 47.
Rg1 {[%clk 0:00:50.2]} 47... Kg4 {[%clk 0:00:43.1]} 48. Rf1 {[%clk 0:00:42.5]}
48... g2 {[%clk 0:00:42.4]} 49. Rg1 {[%clk 0:00:42.2]} 49... Kg3 {[%clk
0:00:42.5]} 50. Kh6 {[%clk 0:00:41.6]} 50... Kh2 {[%clk 0:00:41]} 0-1

[Event "Early-Titled-Tuesday-Blitz-December-26-2023"]
[Site "Chess.com"]
[Date "2023.12.26"]
[Round "3"]
[White "CSB7"]
[Black "ilushka"]
[Result "1-0"]
[WhiteElo "2693"]
[BlackElo "2454"]
[TimeControl "180+1"]
[EndTime "8:27:07 PST"]
[Termination "CSB7 won by checkmate"]

1. d4 {[%clk 0:03:00.9]} 1... e6 {[%clk 0:02:59.8]} 2. Nf3 {[%clk 0:02:55.1]}
2... Nf6 {[%clk 0:02:59.1]} 3. c4 {[%clk 0:02:54.2]} 3... Bb4+ {[%clk
0:02:58.4]} 4. Nbd2 {[%clk 0:02:53.3]} 4... O-O {[%clk 0:02:58]} 5. a3 {[%clk
0:02:53]} 5... Be7 {[%clk 0:02:58.4]} 6. e4 {[%clk 0:02:52.7]} 6... d6 {[%clk
0:02:58.8]} 7. b4 {[%clk 0:02:51.3]} 7... a5 {[%clk 0:02:57.5]} 8. b5 {[%clk
0:02:51.1]} 8... e5 {[%clk 0:02:56.4]} 9. Bb2 {[%clk 0:02:28.8]} 9... exd4
{[%clk 0:02:55.9]} 10. Nxd4 {[%clk 0:02:28.3]} 10... Nfd7 {[%clk 0:02:53.6]} 11.
Qc2 {[%clk 0:02:12]} 11... Nc5 {[%clk 0:02:50.6]} 12. Be2 {[%clk 0:01:53.9]}
12... Bf6 {[%clk 0:02:49.7]} 13. O-O {[%clk 0:01:52.9]} 13... Re8 {[%clk
0:02:40.6]} 14. f4 {[%clk 0:01:45]} 14... a4 {[%clk 0:01:58.2]} 15. Rad1 {[%clk
0:01:16.2]} 15... Nbd7 {[%clk 0:01:54.9]} 16. Kh1 {[%clk 0:01:13.5]} 16... g6
{[%clk 0:01:53.7]} 17. Bf3 {[%clk 0:01:00.8]} 17... Bg7 {[%clk 0:01:53.4]} 18.
Nb1 {[%clk 0:00:50.9]} 18... Nf6 {[%clk 0:01:48.1]} 19. e5 {[%clk 0:00:47.5]}
19... dxe5 {[%clk 0:01:38.2]} 20. fxe5 {[%clk 0:00:48.4]} 20... Ng4 {[%clk
0:01:23.9]} 21. e6 {[%clk 0:00:48.3]} 21... Ne3 {[%clk 0:00:10.6]} 22. exf7+
{[%clk 0:00:47.5]} 22... Kxf7 {[%clk 0:00:10.9]} 23. Bd5+ {[%clk 0:00:30.3]}
23... Ke7 {[%clk 0:00:11.2]} 24. b6 {[%clk 0:00:10]} 24... Nxc2 {[%clk 0:00:10]}
25. Rf7+ {[%clk 0:00:09.9]} 25... Kd6 {[%clk 0:00:10.2]} 26. Nb5# {[%clk
0:00:10.6]} 1-0

[Event "Early-Titled-Tuesday-Blitz-December-26-2023"]
[Site "Chess.com"]
[Date "2023.12.26"]
[Round "3"]
[White "ukchessbomber"]
[Black "Szparu"]
[Result "0-1"]
[WhiteElo "2669"]
[BlackElo "2873"]
[TimeControl "180+1"]
[EndTime "8:27:08 PST"]
[Termination "Szparu won on time"]

1. a3 {[%clk 0:03:00.9]} 1... e5 {[%clk 0:02:57.8]} 2. c4 {[%clk 0:03:00.3]}
2... c6 {[%clk 0:02:55]} 3. d4 {[%clk 0:02:57]} 3... exd4 {[%clk 0:02:55.2]} 4.
Qxd4 {[%clk 0:02:57.9]} 4... d5 {[%clk 0:02:55.6]} 5. Nc3 {[%clk 0:02:56.1]}
5... Nf6 {[%clk 0:02:55.1]} 6. Bg5 {[%clk 0:02:56.2]} 6... dxc4 {[%clk
0:02:41.9]} 7. Qxd8+ {[%clk 0:02:05.9]} 7... Kxd8 {[%clk 0:02:42]} 8. e4 {[%clk
0:02:06.8]} 8... Be6 {[%clk 0:02:33.4]} 9. e5 {[%clk 0:02:04.4]} 9... h6 {[%clk
0:02:33.5]} 10. Bh4 {[%clk 0:01:57.5]} 10... g5 {[%clk 0:02:33.3]} 11. exf6
{[%clk 0:01:54.9]} 11... gxh4 {[%clk 0:02:33.5]} 12. O-O-O+ {[%clk 0:01:55.6]}
12... Nd7 {[%clk 0:02:33.2]} 13. Nf3 {[%clk 0:01:49.2]} 13... Kc7 {[%clk
0:02:30.3]} 14. Nxh4 {[%clk 0:01:40.5]} 14... Nc5 {[%clk 0:02:22.3]} 15. f4
{[%clk 0:01:35.4]} 15... b5 {[%clk 0:02:14.7]} 16. Be2 {[%clk 0:01:22.9]} 16...
a5 {[%clk 0:02:04.1]} 17. f5 {[%clk 0:00:15.9]} 17... Bd7 {[%clk 0:02:02.9]} 18.
Bh5 {[%clk 0:00:16.8]} 18... b4 {[%clk 0:01:59.2]} 19. Ne2 {[%clk 0:00:17.3]}
19... Nd3+ {[%clk 0:01:54.5]} 20. Kc2 {[%clk 0:00:17.3]} 20... Rh7 {[%clk
0:01:20.5]} 21. Bg6 {[%clk 0:00:11.9]} 21... fxg6 {[%clk 0:01:14.5]} 22. fxg6
{[%clk 0:00:12.8]} 22... Rh8 {[%clk 0:01:14.1]} 23. g7 {[%clk 0:00:13.4]} 23...
Rg8 {[%clk 0:01:09.6]} 24. gxf8=Q {[%clk 0:00:13.6]} 24... Raxf8 {[%clk
0:01:10.3]} 25. Rhf1 {[%clk 0:00:14.3]} 25... Rg4 {[%clk 0:01:08.7]} 26. g3
{[%clk 0:00:13.8]} 26... c5 {[%clk 0:01:09.2]} 27. Kd2 {[%clk 0:00:04.6]} 27...
Nxb2 {[%clk 0:01:08.4]} 28. Rc1 {[%clk 0:00:03.4]} 28... c3+ {[%clk 0:01:08.8]}
29. Ke3 {[%clk 0:00:03.4]} 29... Re8+ {[%clk 0:01:04.4]} 30. Kf3 {[%clk
0:00:03.6]} 30... h5 {[%clk 0:01:04.7]} 31. Nf4 {[%clk 0:00:02.7]} 31... Bc6+
{[%clk 0:01:02.2]} 32. Kf2 {[%clk 0:00:03.3]} 32... Rxf4+ {[%clk 0:00:59.2]} 33.
gxf4 {[%clk 0:00:03.5]} 33... Nd3+ {[%clk 0:00:59.9]} 34. Kg3 {[%clk 0:00:03.2]}
34... Rg8+ {[%clk 0:00:47.9]} 35. Kh3 {[%clk 0:00:02.8]} 35... Rg4 {[%clk
0:00:40.3]} 36. f7 {[%clk 0:00:01.7]} 36... Nxf4+ {[%clk 0:00:40.3]} 37. Rxf4
{[%clk 0:00:02]} 37... Rxf4 {[%clk 0:00:41]} 0-1

[Event "Early-Titled-Tuesday-Blitz-December-26-2023"]
[Site "Chess.com"]
[Date "2023.12.26"]
[Round "3"]
[White "MrrRefrao"]
[Black "Hoshka"]
[Result "1-0"]
[WhiteElo "2550"]
[BlackElo "2036"]
[TimeControl "180+1"]
[EndTime "8:27:11 PST"]
[Termination "MrrRefrao won on time"]

1. Nf3 {[%clk 0:03:00.9]} 1... d5 {[%clk 0:02:59.5]} 2. g3 {[%clk 0:03:00.7]}
2... Nf6 {[%clk 0:02:57.5]} 3. Bg2 {[%clk 0:03:01.1]} 3... e6 {[%clk 0:02:57]}
4. O-O {[%clk 0:03:01.6]} 4... Be7 {[%clk 0:02:56.9]} 5. d3 {[%clk 0:03:02.3]}
5... c5 {[%clk 0:02:55.6]} 6. Nbd2 {[%clk 0:03:00.1]} 6... Nc6 {[%clk
0:02:55.2]} 7. e4 {[%clk 0:03:00.9]} 7... O-O {[%clk 0:02:54.1]} 8. e5 {[%clk
0:03:01]} 8... Nd7 {[%clk 0:02:53.8]} 9. Re1 {[%clk 0:03:01.6]} 9... b5 {[%clk
0:02:52.4]} 10. Nf1 {[%clk 0:03:00]} 10... b4 {[%clk 0:02:50.4]} 11. h4 {[%clk
0:03:00.2]} 11... a5 {[%clk 0:02:48.6]} 12. h5 {[%clk 0:03:00.4]} 12... h6
{[%clk 0:02:38.6]} 13. N1h2 {[%clk 0:02:58.5]} 13... Re8 {[%clk 0:02:37.3]} 14.
Ng4 {[%clk 0:02:58.2]} 14... Bf8 {[%clk 0:02:36.7]} 15. c4 {[%clk 0:02:45.2]}
15... dxc4 {[%clk 0:02:20.7]} 16. dxc4 {[%clk 0:02:44.4]} 16... Bb7 {[%clk
0:02:14.6]} 17. Bf4 {[%clk 0:02:26.4]} 17... Nb6 {[%clk 0:02:13.2]} 18. Qe2
{[%clk 0:02:24.4]} 18... Qc7 {[%clk 0:01:59.1]} 19. Bxh6 {[%clk 0:01:59.4]}
19... Red8 {[%clk 0:01:25.2]} 20. Bf4 {[%clk 0:01:34.8]} 20... Nd4 {[%clk
0:01:20]} 21. Nxd4 {[%clk 0:01:34.4]} 21... Rxd4 {[%clk 0:01:19.1]} 22. h6
{[%clk 0:01:14.5]} 22... Bxg2 {[%clk 0:01:11.3]} 23. hxg7 {[%clk 0:01:06.5]}
23... Bxg7 {[%clk 0:01:06]} 24. Nf6+ {[%clk 0:01:00.5]} 24... Kf8 {[%clk
0:01:02.7]} 25. Kxg2 {[%clk 0:00:57.4]} 25... Qb7+ {[%clk 0:00:44.3]} 26. Kg1
{[%clk 0:00:43.4]} 26... Nxc4 {[%clk 0:00:43.5]} 27. Qg4 {[%clk 0:00:41.5]}
27... Nd2 {[%clk 0:00:10.8]} 28. Re3 {[%clk 0:00:33]} 28... Qf3 {[%clk
0:00:06.2]} 29. Rxf3 {[%clk 0:00:31.9]} 1-0

[Event "Early-Titled-Tuesday-Blitz-December-26-2023"]
[Site "Chess.com"]
[Date "2023.12.26"]
[Round "3"]
[White "Gyulamiryan-koryun"]
[Black "Petrakejzar96"]
[Result "0-1"]
[WhiteElo "2003"]
[BlackElo "2331"]
[TimeControl "180+1"]
[EndTime "8:27:11 PST"]
[Termination "Petrakejzar96 won on time"]

1. e4 {[%clk 0:02:50.3]} 1... c5 {[%clk 0:02:58.8]} 2. Nf3 {[%clk 0:02:48.1]}
2... e6 {[%clk 0:02:58.8]} 3. c4 {[%clk 0:02:46.9]} 3... Nc6 {[%clk 0:02:55.8]}
4. Nc3 {[%clk 0:02:47.8]} 4... e5 {[%clk 0:02:54.3]} 5. Be2 {[%clk 0:02:44.3]}
5... g6 {[%clk 0:02:54.5]} 6. O-O {[%clk 0:02:17.9]} 6... Bg7 {[%clk 0:02:54.8]}
7. a3 {[%clk 0:01:41.3]} 7... Nge7 {[%clk 0:02:54.7]} 8. d3 {[%clk 0:01:36.1]}
8... O-O {[%clk 0:02:54.7]} 9. Bg5 {[%clk 0:01:34.8]} 9... f6 {[%clk 0:02:53.8]}
10. Bh4 {[%clk 0:01:34.8]} 10... d6 {[%clk 0:02:34.8]} 11. h3 {[%clk 0:01:33.7]}
11... Be6 {[%clk 0:02:33.6]} 12. Nh2 {[%clk 0:01:26.5]} 12... Nd4 {[%clk
0:02:31.1]} 13. Bg4 {[%clk 0:01:24.1]} 13... f5 {[%clk 0:02:26.6]} 14. exf5
{[%clk 0:01:17.9]} 14... gxf5 {[%clk 0:02:27.5]} 15. Bh5 {[%clk 0:01:14.6]}
15... Qd7 {[%clk 0:02:23]} 16. Nf3 {[%clk 0:01:12.7]} 16... Ng6 {[%clk
0:02:16.8]} 17. Bxg6 {[%clk 0:01:06.5]} 17... hxg6 {[%clk 0:02:14.8]} 18. Ng5
{[%clk 0:00:59.9]} 18... Rae8 {[%clk 0:01:48.7]} 19. b4 {[%clk 0:00:51]} 19...
b6 {[%clk 0:01:43]} 20. bxc5 {[%clk 0:00:48.5]} 20... dxc5 {[%clk 0:01:43.9]}
21. Rb1 {[%clk 0:00:47.4]} 21... Qb7 {[%clk 0:01:32.5]} 22. Nb5 {[%clk
0:00:42.6]} 22... Nxb5 {[%clk 0:01:27.9]} 23. Rxb5 {[%clk 0:00:41.7]} 23... Bd7
{[%clk 0:01:27.8]} 24. Rb1 {[%clk 0:00:35.8]} 24... Bc6 {[%clk 0:01:27.8]} 25.
f3 {[%clk 0:00:35.3]} 25... Rd8 {[%clk 0:01:25.3]} 26. Qe2 {[%clk 0:00:32.3]}
26... Rd6 {[%clk 0:01:14.1]} 27. Bg3 {[%clk 0:00:29.9]} 27... Qe7 {[%clk
0:01:07.6]} 28. Rbe1 {[%clk 0:00:24.6]} 28... Qxg5 {[%clk 0:01:05.5]} 29. Bh2
{[%clk 0:00:14.6]} 29... Rdd8 {[%clk 0:00:52.8]} 30. Bxe5 {[%clk 0:00:10.2]}
30... Bxe5 {[%clk 0:00:49.7]} 31. Qxe5 {[%clk 0:00:09.8]} 31... Rde8 {[%clk
0:00:49.6]} 32. Qd6 {[%clk 0:00:07.3]} 32... Bxf3 {[%clk 0:00:41]} 33. Rxf3
{[%clk 0:00:02]} 33... Rxe1+ {[%clk 0:00:39.4]} 34. Kh2 {[%clk 0:00:02.1]} 34...
Ree8 {[%clk 0:00:39]} 0-1